bitfinex-derivatives/quotes_BTCF0:USTF0_20251103
["timestamp","ask_amount","ask_price","bid_price","bid_amount"]
[1762133941394,0.1486562,109790.0,109780.0,0.1607]
[1762133941594,0.32724353,109790.0,109780.0,0.1607]
[1762133941984,0.32724353,109790.0,109780.0,0.011]
[1762133942188,0.1486562,109790.0,109780.0,0.011]
[1762133942586,0.7486562,109790.0,109780.0,0.05525]
[1762133942790,1.0662962,109790.0,109780.0,0.1463444]
[1762133943000,0.7486562,109790.0,109780.0,0.05525]
[1762133943300,0.7486562,109790.0,109780.0,0.011]
[1762133943498,1.0662162,109790.0,109780.0,0.011]
[1762133943899,1.24480353,109790.0,109780.0,0.011]
[1762133944299,0.05302,109770.0,109760.0,0.10464479]
[1762133944491,0.37058,109770.0,109760.0,0.04425]
[1762133944797,0.04432,109760.0,109750.0,0.54836069]
[1762133945402,0.03132,109760.0,109750.0,0.54836069]
[1762133945697,0.02532,109760.0,109750.0,0.54836069]
[1762133946201,0.02632,109760.0,109750.0,0.23772069]
[1762133946405,0.02632,109760.0,109750.0,0.25072069]
[1762133946695,0.81204733,109760.0,109750.0,0.02]
[1762133946895,0.04432,109740.0,109730.0,0.03267615]
[1762133947098,0.04432,109740.0,109730.0,8.396e-05]
[1762133947099,0.54082733,109740.0,109730.0,8.396e-05]
[1762133947401,1.14082733,109740.0,109730.0,8.396e-05]
[1762133947792,0.02281,109710.0,109700.0,0.11831479]
[1762133948097,0.04432,109710.0,109700.0,0.18167299]
[1762133948301,0.36232,109720.0,109710.0,0.04425]
[1762133948493,0.36032,109720.0,109710.0,0.1354025]
[1762133948696,0.36040396,109720.0,109710.0,0.04425]
[1762133949201,0.36236396,109720.0,109710.0,0.04425]
[1762133949403,0.04440396,109720.0,109710.0,0.04425]
[1762133949799,0.29208396,109720.0,109710.0,0.04425]
[1762133950802,0.29308396,109720.0,109710.0,0.04525]
[1762133951200,0.29908396,109720.0,109710.0,0.04625]
[1762133951904,0.29908396,109720.0,109710.0,0.05992]
[1762133952304,0.05140396,109720.0,109710.0,0.05992]
[1762133952604,0.36936396,109720.0,109710.0,0.05992]
[1762133952904,0.55497129,109720.0,109710.0,0.002]
[1762133953204,0.64611569,109720.0,109710.0,0.002]
[1762133954101,0.46752836,109720.0,109710.0,0.002]
[1762133955104,1.24611569,109720.0,109710.0,0.002]
[1762133955495,1.24611569,109720.0,109690.0,0.01367]
[1762133955694,0.1359507,109700.0,109690.0,0.05786]
[1762133955908,0.4537507,109700.0,109690.0,0.05786]
[1762133956103,0.4537507,109700.0,109690.0,0.149029]
[1762133956407,0.4537507,109700.0,109690.0,0.05786]
[1762133956599,0.4537507,109700.0,109690.0,0.149029]
[1762133956906,0.4537507,109700.0,109690.0,0.05786]
[1762133957093,0.4537507,109700.0,109690.0,0.02152]
[1762133957298,0.135959,109690.0,109680.0,0.05786]
[1762133957705,0.134959,109690.0,109680.0,0.05786]
[1762133958692,0.136959,109690.0,109680.0,0.06386]
[1762133959493,0.04579,109690.0,109680.0,0.1550373]
[1762133960111,0.136959,109690.0,109680.0,0.06386]
[1762133963609,0.002,109690.0,109680.0,0.62362473]
[1762133964199,0.1359341,109720.0,109710.0,0.126042]
[1762133964399,0.1359341,109720.0,109710.0,0.05756]
[1762133965511,0.04879,109720.0,109710.0,0.1507124]
[1762133965701,0.05579,109720.0,109710.0,0.2607124]
[1762133966008,0.05579,109720.0,109710.0,0.1707124]
[1762133966399,0.011,109720.0,109710.0,0.62929973]
[1762133966600,0.011,109720.0,109710.0,0.34929973]
[1762133966801,0.011,109720.0,109710.0,0.32929973]
[1762133967007,0.011,109720.0,109710.0,0.45929973]
[1762133967210,0.011,109720.0,109710.0,0.65929973]
[1762133967617,0.011,109720.0,109710.0,0.66929973]
[1762133967802,0.011,109720.0,109710.0,0.70189192]
[1762133968002,0.011,109720.0,109710.0,0.37929973]
[1762133968310,0.011,109720.0,109710.0,0.36189192]
[1762133968515,0.011,109720.0,109710.0,0.64189192]
[1762133968912,0.1466541,109720.0,109710.0,0.09215219]
[1762133969106,0.1466541,109720.0,109710.0,0.05956]
[1762133969503,0.33187143,109720.0,109710.0,0.002]
[1762133969712,0.1532841,109720.0,109710.0,0.002]
[1762133970609,0.1532841,109720.0,109710.0,0.02438]
[1762133971205,0.7532841,109720.0,109710.0,0.002]
[1762133971408,1.24979143,109720.0,109710.0,0.002]
[1762133971911,1.24979143,109720.0,109710.0,0.02438]
[1762133972206,1.0712041,109720.0,109710.0,0.02438]
[1762133972408,0.4645741,109720.0,109710.0,0.05967]
[1762133974505,0.4645741,109720.0,109710.0,0.1508223]
[1762133975016,0.4645741,109720.0,109710.0,0.09226219]
[1762133975713,0.4712041,109720.0,109710.0,0.07854219]
[1762133975902,0.4645741,109720.0,109710.0,0.09226219]
[1762133976305,0.37343,109720.0,109710.0,0.18341439]
[1762133976506,0.03424,109720.0,109710.0,0.29341439]
[1762133976708,0.011,109720.0,109710.0,0.72890962]
[1762133977016,0.011,109720.0,109710.0,0.69708953]
[1762133977217,0.011,109720.0,109710.0,0.66708953]
[1762133977603,0.011,109720.0,109710.0,0.92708953]
[1762133977909,0.011,109720.0,109710.0,1.00201851]
[1762133979410,0.011,109720.0,109710.0,0.73270687]
[1762133979611,0.011,109720.0,109710.0,1.05270687]
[1762133980806,0.011,109720.0,109710.0,0.87411954]
[1762133981012,0.011,109720.0,109710.0,0.76270687]
[1762133981413,0.011,109720.0,109710.0,1.02270687]
[1762133981612,0.135633,109750.0,109740.0,0.05767]
[1762133982309,0.1356374,109740.0,109730.0,0.09036597]
[1762133983709,0.1556374,109740.0,109730.0,0.09236597]
[1762133984310,0.28464422,109740.0,109730.0,0.07864597]
[1762133984513,0.28464422,109740.0,109730.0,0.002]
[1762133985316,0.88464422,109740.0,109730.0,0.002]
[1762133985617,1.20208422,109740.0,109730.0,0.002]
[1762133985911,0.091144,109720.0,109710.0,0.09545993]
[1762133986111,0.25954082,109720.0,109710.0,0.08173993]
[1762133986415,0.25954082,109720.0,109710.0,0.03269597]
[1762133987007,0.1341823,109710.0,109700.0,0.13758993]
[1762133987410,0.1408123,109710.0,109700.0,0.13758993]
[1762133987811,0.1408123,109710.0,109700.0,0.22875063]
[1762133988418,0.1398123,109710.0,109700.0,0.13758993]
[1762133989118,0.1331823,109710.0,109700.0,0.22875053]
[1762133989319,0.1341823,109710.0,109700.0,0.13858993]
[1762133991816,0.04303,109710.0,109700.0,0.22975063]
[1762133992020,0.1341823,109710.0,109700.0,0.22975063]
[1762133992412,0.1341823,109710.0,109700.0,0.19705466]
[1762133993420,0.04303,109710.0,109700.0,0.31892148]
[1762133993915,0.1341822,109710.0,109700.0,0.31892148]
[1762133994216,0.1341822,109710.0,109700.0,0.10589396]
[1762133994908,0.1341822,109710.0,109700.0,0.19705466]
[1762133995109,0.04303,109710.0,109700.0,0.21705466]
[1762133995322,0.1341824,109710.0,109700.0,0.10589396]
[1762133995711,0.1341824,109710.0,109700.0,0.21705466]
[1762133995913,0.1341824,109710.0,109700.0,0.10589396]
[1762133996413,0.1341824,109710.0,109700.0,0.19705466]
[1762133996614,0.1341824,109710.0,109700.0,0.21705466]
[1762133996814,0.1341824,109710.0,109700.0,0.10589396]
[1762133998825,0.1376824,109710.0,109700.0,0.09217396]
[1762134000622,0.1376824,109710.0,109700.0,0.18333466]
[1762134000822,0.1376824,109710.0,109700.0,0.09217396]
[1762134001024,0.25954922,109710.0,109700.0,0.05004396]
[1762134001216,0.1376824,109710.0,109700.0,0.05004396]
[1762134001618,0.1376824,109710.0,109700.0,0.07112396]
[1762134001818,0.1376824,109710.0,109700.0,0.05004396]
[1762134002126,0.25954922,109710.0,109700.0,0.08277759]
[1762134002721,0.26847374,109710.0,109700.0,0.08277759]
[1762134002930,0.26847374,109710.0,109700.0,0.03373363]
[1762134003123,0.0911608,109700.0,109690.0,0.04904396]
[1762134003428,0.57632762,109700.0,109690.0,0.04904396]
[1762134004028,0.57632762,109700.0,109690.0,0.08177433]
[1762134004426,0.57632762,109700.0,109690.0,0.08477433]
[1762134005026,0.57732762,109700.0,109690.0,0.08577433]
[1762134005728,0.05017,109690.0,109680.0,0.04904396]
[1762134005930,0.04766,109680.0,109670.0,0.07012396]
[1762134006230,0.36458,109680.0,109670.0,0.04213]
[1762134006634,0.36458,109680.0,109670.0,0.05582]
[1762134007029,0.35995,109680.0,109670.0,0.05582]
[1762134007234,0.36495,109680.0,109670.0,0.05682]
[1762134007635,0.37195,109680.0,109670.0,0.05782]
[1762134007836,0.37195,109680.0,109670.0,0.1490055]
[1762134008136,0.012,109680.0,109670.0,0.29087232]
[1762134008329,0.012,109680.0,109670.0,0.33991628]
[1762134008528,0.012,109680.0,109670.0,0.31991628]
[1762134008734,0.012,109680.0,109670.0,0.44991628]
[1762134008933,0.03321,109680.0,109670.0,0.31991628]
[1762134009138,0.03321,109680.0,109670.0,0.33991628]
[1762134009633,0.012,109680.0,109670.0,0.59991628]
[1762134010038,0.03321,109680.0,109670.0,0.33991628]
[1762134010232,0.03321,109680.0,109670.0,0.22873078]
[1762134010535,0.03321,109680.0,109670.0,0.33891638]
[1762134010536,0.02821,109680.0,109670.0,0.33891638]
[1762134010737,0.03221,109680.0,109670.0,0.33991638]
[1762134011126,0.011,109680.0,109670.0,0.33991638]
[1762134011529,0.011,109680.0,109670.0,0.31991638]
[1762134011826,0.011,109680.0,109670.0,0.58991638]
[1762134012033,0.011,109680.0,109670.0,0.29087242]
[1762134012234,0.011,109680.0,109670.0,0.58087242]
[1762134013139,0.011,109680.0,109670.0,0.89791242]
[1762134013329,0.011,109680.0,109670.0,0.96352976]
[1762134013637,0.011,109680.0,109670.0,0.67352976]
[1762134013833,0.011,109680.0,109670.0,0.99352976]
[1762134014037,0.05195452,109710.0,109700.0,0.05582]
[1762134014236,0.46010692,109710.0,109700.0,0.05582]
[1762134014540,0.4511824,109710.0,109700.0,0.05582]
[1762134014840,0.4511824,109710.0,109700.0,0.1469807]
[1762134015138,0.4511824,109710.0,109700.0,0.10486496]
[1762134015339,0.4601824,109710.0,109700.0,0.10586496]
[1762134015526,0.4711824,109710.0,109700.0,0.09217496]
[1762134015730,0.60404922,109710.0,109700.0,0.002]
[1762134015931,1.20404922,109710.0,109700.0,0.002]
[1762134016636,1.19304922,109710.0,109700.0,0.001]
[1762134016840,1.0791824,109710.0,109700.0,0.06131]
[1762134017041,0.4591824,109710.0,109700.0,0.06031]
[1762134017340,0.1481824,109710.0,109700.0,0.11035496]
[1762134017939,0.1529024,109710.0,109700.0,0.11035496]
[1762134018239,0.1481824,109710.0,109700.0,0.11035496]
[1762134018439,0.1401824,109710.0,109700.0,0.10935496]
[1762134018642,0.1481824,109710.0,109700.0,0.11035496]
[1762134021246,0.1529024,109710.0,109700.0,0.11035496]
[1762134021442,0.1529024,109710.0,109700.0,0.09653496]
[1762134021648,0.27476922,109710.0,109700.0,0.05104496]
[1762134022346,0.27476922,109710.0,109700.0,0.002]
[1762134022546,0.87476922,109710.0,109700.0,0.002]
[1762134022742,0.27476922,109710.0,109700.0,0.002]
[1762134023638,0.87476922,109710.0,109700.0,0.002]
[1762134024242,0.89558443,109710.0,109700.0,0.002]
[1762134030257,0.1472391,109690.0,109680.0,0.04904496]
[1762134030459,0.4641191,109690.0,109680.0,0.07111496]
[1762134030854,0.4641191,109690.0,109680.0,0.09309496]
[1762134031456,0.4661191,109690.0,109680.0,0.09309496]
[1762134032165,0.4661191,109690.0,109680.0,0.09409496]
[1762134032365,0.4691191,109690.0,109680.0,0.09409496]
[1762134032863,0.59098592,109690.0,109680.0,0.09409496]
[1762134033359,0.59098592,109690.0,109680.0,0.001]
[1762134034152,0.59098592,109690.0,109680.0,0.05004496]
[1762134035664,0.59098592,109690.0,109680.0,0.08280607]
[1762134038073,0.59098592,109690.0,109680.0,0.10487607]
[1762134038951,0.4580291,109690.0,109680.0,0.23193347]
[1762134039158,0.04998,109690.0,109680.0,0.32103918]
[1762134039351,0.005,109690.0,109680.0,0.43103918]
[1762134039565,0.005,109690.0,109680.0,0.64761156]
[1762134040159,0.005,109690.0,109680.0,0.25113044]
[1762134040363,0.005,109690.0,109680.0,0.37299726]
[1762134040654,0.1411491,109690.0,109680.0,0.23113044]
[1762134041063,0.04998,109690.0,109680.0,0.25113044]
[1762134041265,0.04998,109690.0,109680.0,0.1701274]
[1762134041563,0.04998,109690.0,109680.0,0.25113044]
[1762134041765,0.04998,109690.0,109680.0,0.1701274]
[1762134042064,0.04998,109690.0,109680.0,0.23564371]
[1762134042365,0.04998,109690.0,109680.0,0.37564371]
[1762134042563,0.02733,109690.0,109680.0,0.37564371]
[1762134043466,0.02733,109690.0,109680.0,0.21564371]
[1762134043660,0.02733,109690.0,109680.0,0.23564371]
[1762134044061,0.04998,109690.0,109680.0,0.23564371]
[1762134044262,0.1411491,109690.0,109680.0,0.21564371]
[1762134044462,0.04998,109690.0,109680.0,0.23564371]
[1762134046060,0.02733,109690.0,109680.0,0.23564371]
[1762134046469,0.1184991,109690.0,109680.0,0.21564371]
[1762134046768,0.02733,109690.0,109680.0,0.23564371]
[1762134047069,0.005,109690.0,109680.0,0.23564371]
[1762134047269,0.02732,109690.0,109680.0,0.23564371]
[1762134047871,0.005,109690.0,109680.0,0.23564371]
[1762134048069,0.02732,109690.0,109680.0,0.23564371]
[1762134048778,0.005,109690.0,109680.0,0.23564371]
[1762134049271,0.005,109690.0,109680.0,0.39449748]
[1762134049461,0.005,109690.0,109680.0,0.43449748]
[1762134050169,0.005,109690.0,109680.0,0.41449748]
[1762134050370,0.04861,109690.0,109680.0,0.23564371]
[1762134050561,0.02732,109690.0,109680.0,0.23564371]
[1762134050757,0.005,109690.0,109680.0,0.51564371]
[1762134050959,0.005,109690.0,109680.0,0.84419748]
[1762134051264,0.005,109690.0,109680.0,0.68419748]
[1762134051968,0.005,109690.0,109680.0,0.84419748]
[1762134053866,0.005,109690.0,109680.0,0.59419748]
[1762134054773,0.005,109690.0,109680.0,0.84419748]
[1762134057578,0.4194054,109710.0,109700.0,0.1487408]
[1762134057778,0.4194054,109710.0,109700.0,0.10671535]
[1762134058274,0.4194054,109710.0,109700.0,0.05758]
[1762134058773,0.4284054,109710.0,109700.0,0.05858]
[1762134058968,0.4284054,109710.0,109700.0,0.05958]
[1762134059169,0.4344054,109710.0,109700.0,0.05958]
[1762134059374,0.1497654,109710.0,109700.0,0.05958]
[1762134059787,0.1543954,109710.0,109700.0,0.04681]
[1762134060073,0.33324917,109710.0,109700.0,0.04681]
[1762134060278,0.35417133,109710.0,109700.0,0.04681]
[1762134060479,1.27101133,109710.0,109700.0,0.002]
[1762134060677,0.1431808,109700.0,109690.0,0.04913535]
[1762134060978,0.63887457,109700.0,109690.0,0.04913535]
[1762134061180,0.4600208,109700.0,109690.0,0.19788445]
[1762134061380,0.4516108,109700.0,109690.0,0.19788445]
[1762134061579,0.4642708,109700.0,109690.0,0.04913535]
[1762134061775,0.64312457,109700.0,109690.0,0.04913535]
[1762134062079,0.64912457,109700.0,109690.0,0.05013535]
[1762134062282,0.64912457,109700.0,109690.0,0.001]
[1762134062974,1.24912457,109700.0,109690.0,0.001]
[1762134063374,1.24912457,109700.0,109690.0,0.02264]
[1762134063566,1.0702708,109700.0,109690.0,0.04581]
[1762134064272,1.0702708,109700.0,109690.0,0.001]
[1762134065376,1.27002528,109700.0,109690.0,0.001]
[1762134065580,1.09117151,109700.0,109690.0,0.001]
[1762134065783,1.27002528,109700.0,109690.0,0.001]
[1762134066385,0.24007792,109690.0,109680.0,0.04913535]
[1762134067584,0.84007792,109690.0,109680.0,0.04913535]
[1762134067788,0.1464474,109680.0,109670.0,0.04913535]
[1762134067989,0.56090622,109680.0,109670.0,0.04913535]
[1762134068187,0.04361,109670.0,109660.0,9.603e-05]
[1762134068489,0.14649882,109670.0,109660.0,0.04925243]
[1762134069183,0.14549882,109670.0,109660.0,0.07089243]
[1762134069383,0.15464073,109670.0,109660.0,0.07089243]
[1762134069580,0.15464073,109670.0,109660.0,0.09406243]
[1762134070878,0.15964073,109670.0,109660.0,0.09506243]
[1762134071497,0.15964073,109670.0,109660.0,0.05025243]
[1762134071789,0.15964073,109670.0,109660.0,0.07189243]
[1762134072185,0.15964073,109670.0,109660.0,0.02273603]
[1762134072487,0.15964073,109670.0,109660.0,0.04590603]
[1762134072985,0.15964073,109670.0,109660.0,0.14987013]
[1762134072986,0.04761,109670.0,109660.0,0.14987013]
[1762134073287,0.04761,109670.0,109660.0,0.24748895]
[1762134073288,0.005,109670.0,109660.0,0.24748895]
[1762134073587,0.005,109670.0,109660.0,0.26748895]
[1762134075593,0.05052,109670.0,109660.0,0.15629485]
[1762134075789,0.05052,109670.0,109660.0,0.26748895]
[1762134076091,0.05052,109670.0,109660.0,0.24748895]
[1762134076092,0.005,109670.0,109660.0,0.24748895]
[1762134076287,0.005,109670.0,109660.0,0.26748895]
[1762134076793,0.1405457,109670.0,109660.0,0.26748895]
[1762134077090,0.1405457,109670.0,109660.0,0.14987013]
[1762134077297,0.1405457,109670.0,109660.0,0.26748895]
[1762134077788,0.04936,109670.0,109660.0,0.26748895]
[1762134079890,0.1405457,109670.0,109660.0,0.26748895]
[1762134080391,0.04936,109670.0,109660.0,0.26748895]
[1762134080697,0.1405457,109670.0,109660.0,0.26748895]
[1762134080890,0.1405457,109670.0,109660.0,0.05867603]
[1762134081191,0.1405457,109670.0,109660.0,0.12419234]
[1762134081581,0.1405457,109670.0,109660.0,0.05867603]
[1762134081783,0.1405457,109670.0,109660.0,0.04590603]
[1762134081784,0.24705452,109670.0,109660.0,0.04590603]
[1762134082096,0.56389452,109670.0,109660.0,0.04590603]
[1762134082788,0.56389452,109670.0,109660.0,0.00109603]
[1762134083890,0.01266,109650.0,109630.0,0.21379521]
[1762134084092,0.04436,109640.0,109630.0,0.1482789]
[1762134084586,0.04436,109640.0,109630.0,0.148279]
[1762134084988,0.04442755,109640.0,109630.0,0.148279]
[1762134085490,0.04442755,109640.0,109630.0,0.149279]
[1762134086198,0.04442755,109640.0,109630.0,0.157279]
[1762134086697,0.04442755,109640.0,109630.0,0.149279]
[1762134086894,0.04442755,109640.0,109630.0,0.150279]
[1762134087097,0.04542755,109640.0,109630.0,0.151279]
[1762134087697,0.04542755,109640.0,109630.0,0.06006]
[1762134088599,0.04542755,109640.0,109630.0,0.1091465]
[1762134089193,0.04542755,109640.0,109630.0,0.151279]
[1762134093401,0.13663825,109640.0,109630.0,0.06006]
[1762134093697,0.13663825,109640.0,109630.0,0.151279]
[1762134095399,0.13663825,109640.0,109630.0,0.12557631]
[1762134096400,0.13663825,109640.0,109630.0,0.21679531]
[1762134097696,0.04542755,109640.0,109630.0,0.21679531]
[1762134098403,0.13663825,109640.0,109630.0,0.21679531]
[1762134099891,0.04542755,109640.0,109630.0,0.21679531]
[1762134100795,0.04542755,109640.0,109630.0,0.151279]
[1762134102500,0.13511,109670.0,109660.0,0.05774]
[1762134102701,0.13511,109670.0,109660.0,0.1489341]
[1762134103603,0.13511,109670.0,109660.0,0.05874]
[1762134103902,0.14111,109670.0,109660.0,0.05874]
[1762134104303,0.14811,109670.0,109660.0,0.05974]
[1762134104901,0.28278736,109670.0,109660.0,0.04624]
[1762134105806,0.28278736,109670.0,109660.0,0.002]
[1762134106800,0.88278736,109670.0,109660.0,0.002]
[1762134107506,0.9039646,109670.0,109660.0,0.002]
[1762134107900,0.04377,109650.0,109640.0,0.10547634]
[1762134108101,0.4518124,109650.0,109640.0,0.10547634]
[1762134108305,0.54946645,109650.0,109640.0,0.10547634]
[1762134109203,0.56212645,109650.0,109640.0,0.10547634]
[1762134109399,0.56412645,109650.0,109640.0,0.10647634]
[1762134110211,0.56512645,109650.0,109640.0,0.10647634]
[1762134111413,0.56512645,109650.0,109640.0,0.09297634]
[1762134112104,0.56512645,109650.0,109640.0,0.07158634]
[1762134112307,0.6627805,109650.0,109640.0,0.07158634]
[1762134112505,0.56512645,109650.0,109640.0,0.07158634]
[1762134112809,0.6627805,109650.0,109640.0,0.07158634]
[1762134113006,0.4674724,109650.0,109640.0,0.09297634]
[1762134113196,0.55246645,109650.0,109640.0,0.10574634]
[1762134113595,0.56512645,109650.0,109640.0,0.10574634]
[1762134116307,0.55246645,109650.0,109640.0,0.10574634]
[1762134116497,0.56512645,109650.0,109640.0,0.05010634]
[1762134116812,0.56512645,109650.0,109630.0,0.06551631]
[1762134116813,0.05252,109640.0,109630.0,0.06551631]
[1762134117002,0.2478281,109640.0,109630.0,0.06551631]
[1762134117198,0.3390389,109640.0,109630.0,0.08699631]
[1762134117504,0.3390389,109640.0,109620.0,0.0135]
[1762134117505,0.1349891,109630.0,109620.0,0.12188631]
[1762134117702,0.46103389,109630.0,109620.0,0.1475973]
[1762134117903,0.45822405,109630.0,109620.0,0.26525135]
[1762134118105,0.45822405,109630.0,109620.0,0.33076766]
[1762134118409,0.45822405,109630.0,109620.0,0.31076766]
[1762134118410,0.54944305,109630.0,109620.0,0.31076766]
[1762134118603,0.54944305,109630.0,109620.0,0.21311361]
[1762134118804,0.54844305,109630.0,109620.0,0.31076766]
[1762134119012,0.54744305,109630.0,109620.0,0.31076766]
[1762134119214,0.54744305,109630.0,109620.0,0.1475973]
[1762134119413,0.54844305,109630.0,109620.0,0.1495973]
[1762134119613,0.54844305,109630.0,109620.0,0.1495974]
[1762134119812,0.45722405,109630.0,109620.0,0.1545974]
[1762134120011,0.54844305,109630.0,109620.0,0.31776776]
[1762134120201,0.54844305,109630.0,109620.0,0.16102405]
[1762134120717,0.55910305,109630.0,109620.0,0.04987]
[1762134121313,0.6567571,109630.0,109620.0,0.007]
[1762134121508,0.1438874,109620.0,109610.0,0.08592688]
[1762134121708,0.3391955,109620.0,109610.0,0.07315688]
[1762134122516,0.3401955,109620.0,109610.0,0.07615688]
[1762134122714,0.3401955,109620.0,109610.0,0.08315688]
[1762134122910,0.3411955,109620.0,109610.0,0.08315688]
[1762134123515,0.3401955,109620.0,109610.0,0.03028688]
[1762134123720,0.3401955,109620.0,109610.0,0.05776688]
[1762134123917,0.3401955,109620.0,109610.0,0.07915688]
[1762134124114,0.0233,109620.0,109610.0,0.30081663]
[1762134124319,0.35769,109620.0,109610.0,0.28081663]
[1762134124623,0.36157,109620.0,109610.0,0.28081663]
[1762134125020,0.3178,109620.0,109610.0,0.28081663]
[1762134125220,0.3178,109620.0,109610.0,0.30081663]
[1762134125422,0.36157,109620.0,109610.0,0.30081663]
[1762134126409,0.45922405,109620.0,109610.0,0.18958093]
[1762134126615,0.46988405,109620.0,109610.0,0.09192688]
[1762134126815,0.45922405,109620.0,109610.0,0.09192688]
[1762134127015,0.45922405,109620.0,109610.0,0.18316258]
[1762134127217,0.45922405,109620.0,109610.0,0.28081663]
[1762134127623,0.14242405,109620.0,109610.0,0.28081663]
[1762134127817,0.44766405,109620.0,109610.0,0.28081663]
[1762134128123,0.44766405,109620.0,109610.0,0.18958093]
[1762134128326,0.5559781,109620.0,109610.0,0.03628688]
[1762134128810,0.5559781,109620.0,109610.0,0.07915688]
[1762134130021,0.45832405,109620.0,109610.0,0.07915688]
[1762134130419,0.5559781,109620.0,109610.0,0.07915688]
[1762134130622,0.5559781,109620.0,109610.0,0.03628688]
[1762134131019,0.6472055,109620.0,109610.0,0.03628688]
[1762134131221,0.4518974,109620.0,109610.0,0.07915688]
[1762134131424,0.6472055,109620.0,109610.0,0.05776688]
[1762134131719,0.6472055,109620.0,109610.0,0.07915688]
[1762134131921,0.6472055,109620.0,109610.0,0.18316258]
[1762134131922,0.23365145,109620.0,109610.0,0.18316258]
[1762134132121,0.55045145,109620.0,109610.0,0.18316258]
[1762134132322,0.4527974,109620.0,109610.0,0.09192688]
[1762134132626,0.55045145,109620.0,109610.0,0.09192688]
[1762134133127,0.4527974,109620.0,109610.0,0.09192688]
[1762134133424,0.55045145,109620.0,109610.0,0.09192688]
[1762134135628,0.55045145,109620.0,109610.0,0.18316258]
[1762134135826,0.55045145,109620.0,109610.0,0.09192688]
[1762134136129,0.55045145,109620.0,109610.0,0.28081663]
[1762134136624,0.55045145,109620.0,109610.0,0.09192688]
[1762134136828,0.55045145,109620.0,109610.0,0.18958093]
[1762134137732,0.55045145,109620.0,109610.0,0.09192688]
[1762134138326,0.4527974,109620.0,109610.0,0.09192688]
[1762134139733,0.4527974,109620.0,109610.0,0.18316258]
[1762134141037,0.4527974,109620.0,109610.0,0.09192688]
[1762134143537,0.4527974,109620.0,109610.0,0.18316258]
[1762134143733,0.4527974,109620.0,109610.0,0.09192688]
[1762134143940,0.4527974,109620.0,109610.0,0.18316258]
[1762134144136,0.4527974,109620.0,109610.0,0.14099642]
[1762134144438,0.4527974,109620.0,109610.0,0.23223212]
[1762134144842,0.4527974,109620.0,109610.0,0.14099642]
[1762134145141,0.4527974,109620.0,109610.0,0.23223212]
[1762134145942,0.4527974,109620.0,109610.0,0.14099642]
[1762134146439,0.4527974,109620.0,109610.0,0.23223212]
[1762134150238,0.4527974,109620.0,109610.0,0.14099642]
[1762134150634,0.4527974,109620.0,109610.0,0.23223212]
[1762134151836,0.04477,109620.0,109610.0,0.51436523]
[1762134152042,0.04477,109620.0,109610.0,0.23223212]
[1762134152235,0.1359974,109620.0,109610.0,0.30529569]
[1762134152436,0.04477,109620.0,109610.0,0.670812]
[1762134152638,0.04477,109620.0,109610.0,0.390812]
[1762134153242,0.04477,109620.0,109610.0,0.26867889]
[1762134153946,0.1359974,109620.0,109610.0,0.26867889]
[1762134154740,0.1359974,109620.0,109610.0,0.17744319]
[1762134154943,0.1359974,109620.0,109610.0,0.15744319]
[1762134157147,0.26879051,109620.0,109610.0,0.14467319]
[1762134157646,0.26879051,109620.0,109610.0,0.07915688]
[1762134158345,0.26879051,109620.0,109610.0,0.03628688]
[1762134158858,0.1466574,109620.0,109610.0,0.08108688]
[1762134159146,0.26879051,109620.0,109610.0,0.08108688]
[1762134159342,0.26879051,109620.0,109610.0,0.03628688]
[1762134159553,0.26879051,109620.0,109610.0,0.05838688]
[1762134159738,0.26879051,109620.0,109610.0,0.08108688]
[1762134159939,0.1359974,109620.0,109610.0,0.23475549]
[1762134160139,0.001,109620.0,109610.0,0.3768886]
[1762134160349,0.001,109620.0,109610.0,0.35243574]
[1762134160549,0.0456,109620.0,109610.0,0.33243574]
[1762134160953,0.0456,109620.0,109610.0,0.24120014]
[1762134161152,0.0456,109620.0,109610.0,0.19197713]
[1762134161348,0.0496,109620.0,109610.0,0.28121273]
[1762134161540,0.0576,109620.0,109610.0,0.27821273]
[1762134162350,0.0576,109620.0,109610.0,0.29821273]
[1762134162554,0.1488273,109620.0,109610.0,0.18053258]
[1762134162753,0.1488273,109620.0,109610.0,0.27821283]
[1762134163248,0.1488273,109620.0,109610.0,0.18697713]
[1762134164556,0.1488273,109620.0,109610.0,0.18698785]
[1762134165553,0.1488274,109620.0,109610.0,0.29822355]
[1762134166054,0.1488274,109620.0,109610.0,0.18698785]
[1762134166256,0.013,109620.0,109610.0,0.29822355]
[1762134166445,0.013,109620.0,109610.0,0.27822355]
[1762134166446,0.1042273,109620.0,109610.0,0.27822355]
[1762134166646,0.1476273,109620.0,109610.0,0.27822355]
[1762134166859,0.1476273,109620.0,109610.0,0.18698785]
[1762134167360,0.1476273,109620.0,109610.0,0.27822355]
[1762134167952,0.013,109620.0,109610.0,0.29822355]
[1762134168162,0.1042273,109620.0,109610.0,0.29822355]
[1762134168342,0.1476273,109620.0,109610.0,0.27822355]
[1762134168543,0.1476273,109620.0,109610.0,0.29822355]
[1762134168757,0.0564,109620.0,109610.0,0.29822355]
[1762134168945,0.1476273,109620.0,109610.0,0.29822355]
[1762134169142,0.1476273,109620.0,109610.0,0.27822355]
[1762134169952,0.0564,109620.0,109610.0,0.29822355]
[1762134170454,0.1476274,109620.0,109610.0,0.29822355]
[1762134171654,0.0564,109620.0,109610.0,0.29822355]
[1762134172857,0.013,109620.0,109610.0,0.43822355]
[1762134173353,0.0343,109620.0,109610.0,0.43822355]
[1762134174156,0.0564,109620.0,109610.0,0.43822355]
[1762134174350,0.0343,109620.0,109610.0,0.43822355]
[1762134174655,0.013,109620.0,109610.0,0.43822355]
[1762134174860,0.013,109620.0,109610.0,0.29822355]
[1762134175457,0.0343,109620.0,109610.0,0.29822355]
[1762134175755,0.0564,109620.0,109610.0,0.29822355]
[1762134176057,0.0343,109620.0,109610.0,0.29822355]
[1762134176252,0.013,109620.0,109610.0,0.57822355]
[1762134176458,0.013,109620.0,109610.0,0.29822355]
[1762134176861,0.013,109620.0,109610.0,0.58822355]
[1762134177052,0.013,109620.0,109610.0,0.65373986]
[1762134177460,0.013,109620.0,109610.0,0.58822355]
[1762134177860,0.013,109620.0,109610.0,0.66922659]
[1762134178453,0.013,109620.0,109610.0,0.58822355]
[1762134179463,0.1042274,109620.0,109610.0,0.36387954]
[1762134179658,0.1476274,109620.0,109610.0,0.25264384]
[1762134179965,0.1476274,109620.0,109610.0,0.36387954]
[1762134180154,0.1476274,109620.0,109610.0,0.34387954]
[1762134180350,0.0564,109620.0,109610.0,0.36387954]